[Event "November 21 Early 2023"]
[Site "https://www.chess.com"]
[Date "2023.11.21"]
[Round "6"]
[White "Bilan, Danila"]
[Black "Goltsev, Dmitry"]
[Result "0-1"]
[Board "68"]
[TimeControl "180+1"]
[WhiteFideId "24161918"]
[BlackFideId "24176710"]
[WhiteElo "2146"]
[BlackElo "2370"]
[WhiteTeam "RUS"]
[BlackTeam "RUS"]
[WhiteClock "0:00:00"]
[BlackClock "0:01:45"]

1. d4 {[%clk 0:03:00]}  e6 {[%clk 0:02:37]} 2. Nf3 {[%clk 0:02:58]}  d5 {[%clk 0:02:37]} 3. c4 {[%clk 0:02:54]}  Nf6 {[%clk 0:02:37]} 4. Nc3 {[%clk 0:02:53]}  c5 {[%clk 0:02:37]} 5. cxd5 {[%clk 0:02:46]}  exd5 {[%clk 0:02:38]} 6. g3 {[%clk 0:02:45]}  Nc6 {[%clk 0:02:37]} 7. Bg2 {[%clk 0:02:45]}  Be7 {[%clk 0:02:37]} 8. O-O {[%clk 0:02:39]}  O-O {[%clk 0:02:37]} 9. dxc5 {[%clk 0:02:40]}  Bxc5 {[%clk 0:02:38]} 10. Bg5 {[%clk 0:02:40]}  Be6 {[%clk 0:02:35]} 11. Na4 {[%clk 0:02:35]}  Be7 {[%clk 0:02:35]} 12. Nd4 {[%clk 0:02:32]}  Nxd4 {[%clk 0:02:32]} 13. Qxd4 {[%clk 0:02:32]}  Rc8 {[%clk 0:02:32]} 14. Rfc1 {[%clk 0:02:21]}  b6 {[%clk 0:02:30]} 15. Rxc8 {[%clk 0:01:50]}  Qxc8 {[%clk 0:02:23]} 16. Rc1 {[%clk 0:01:45]}  Qa6 {[%clk 0:02:22]} 17. Bf1 {[%clk 0:01:29]}  h6 {[%clk 0:02:17]} 18. Bf4 {[%clk 0:01:22]}  Ne4 {[%clk 0:02:15]} 19. e3 {[%clk 0:01:06]}  Qa5 {[%clk 0:02:01]} 20. b3 {[%clk 0:00:48]}  b5 {[%clk 0:01:55]} 21. Nc3 {[%clk 0:00:29]}  Rc8 {[%clk 0:01:53]} 22. Nxd5 {[%clk 0:00:24]}  Rxc1 {[%clk 0:01:48]} 23. Nxe7+ {[%clk 0:00:23]}  Kf8 {[%clk 0:01:49]} 24. Bd6 {[%clk 0:00:06]}  Bh3 {[%clk 0:01:47]} 25. Nf5+ {[%clk 0:00:06]}  Nxd6 {[%clk 0:01:46]} 26. Qxd6+ {[%clk 0:00:01]}  Kg8 {[%clk 0:01:46]} 27. Ne7+ {[%clk 0:00:00]}  Kh7 {[%clk 0:01:45]} 0-1

[Event "November 21 Early 2023"]
[Site "https://www.chess.com"]
[Date "2023.11.21"]
[Round "6"]
[White "Lund, Gunnar"]
[Black "De Silva, L M S T"]
[Result "0-1"]
[Board "69"]
[TimeControl "180+1"]
[WhiteFideId "1520814"]
[BlackFideId "9953698"]
[WhiteElo "2233"]
[BlackElo "2372"]
[WhiteTeam "NOR"]
[BlackTeam "SRI"]
[WhiteClock "0:01:09"]
[BlackClock "0:01:09"]

1. d4 {[%clk 0:03:00]}  Nf6 {[%clk 0:02:58]} 2. c4 {[%clk 0:03:00]}  e6 {[%clk 0:02:59]} 3. g3 {[%clk 0:03:01]}  d5 {[%clk 0:02:55]} 4. Nf3 {[%clk 0:03:00]}  Be7 {[%clk 0:02:55]} 5. Bg2 {[%clk 0:03:00]}  O-O {[%clk 0:02:56]} 6. O-O {[%clk 0:03:01]}  dxc4 {[%clk 0:02:57]} 7. Qc2 {[%clk 0:03:01]}  a6 {[%clk 0:02:57]} 8. a4 {[%clk 0:03:02]}  Nc6 {[%clk 0:02:58]} 9. Qxc4 {[%clk 0:03:02]}  Na5 {[%clk 0:02:58]} 10. Qc2 {[%clk 0:02:52]}  b6 {[%clk 0:02:58]} 11. Bd2 {[%clk 0:02:47]}  Bb7 {[%clk 0:02:52]} 12. Bxa5 {[%clk 0:02:47]}  bxa5 {[%clk 0:02:53]} 13. Nbd2 {[%clk 0:02:48]}  Nd5 {[%clk 0:02:32]} 14. Rac1 {[%clk 0:02:43]}  Rc8 {[%clk 0:02:31]} 15. Nb3 {[%clk 0:02:33]}  Nb4 {[%clk 0:02:29]} 16. Qc3 {[%clk 0:02:29]}  Na2 {[%clk 0:02:28]} 17. Qc2 {[%clk 0:02:27]}  Nxc1 {[%clk 0:02:28]} 18. Rxc1 {[%clk 0:02:28]}  Bd5 {[%clk 0:02:29]} 19. Nc5 {[%clk 0:02:25]}  Bxc5 {[%clk 0:02:26]} 20. Qxc5 {[%clk 0:02:24]}  Qd6 {[%clk 0:02:20]} 21. Qxa5 {[%clk 0:02:20]}  Rb8 {[%clk 0:02:18]} 22. Qc3 {[%clk 0:01:52]}  Rb3 {[%clk 0:02:10]} 23. Qc2 {[%clk 0:01:42]}  Rfb8 {[%clk 0:02:06]} 24. e4 {[%clk 0:01:40]}  Rxb2 {[%clk 0:02:01]} 25. Qd3 {[%clk 0:01:36]}  R8b3 {[%clk 0:01:56]} 26. Rc3 {[%clk 0:01:36]}  Rxc3 {[%clk 0:01:33]} 27. Qxc3 {[%clk 0:01:37]}  Rb1+ {[%clk 0:01:33]} 28. Ne1 {[%clk 0:01:38]}  Qc6 {[%clk 0:01:25]} 29. Qe3 {[%clk 0:01:17]}  Qc1 {[%clk 0:01:17]} 30. exd5 {[%clk 0:01:15]}  Qxe1+ {[%clk 0:01:17]} 31. Qxe1 {[%clk 0:01:15]}  Rxe1+ {[%clk 0:01:18]} 32. Bf1 {[%clk 0:01:16]}  exd5 {[%clk 0:01:19]} 33. Kg2 {[%clk 0:01:17]}  a5 {[%clk 0:01:14]} 34. Bb5 {[%clk 0:01:09]}  Re4 {[%clk 0:01:09]} 35. Kf3 {[%clk 0:01:08]}  Rxd4 {[%clk 0:01:09]} 36. Ke3 {[%clk 0:01:08]}  c5 {[%clk 0:01:10]} 37. Bc6 {[%clk 0:01:07]}  f6 {[%clk 0:01:08]} 38. f4 {[%clk 0:01:08]}  Kf7 {[%clk 0:01:08]} 39. f5 {[%clk 0:01:08]}  Ke7 {[%clk 0:01:09]} 40. Bb5 {[%clk 0:01:08]}  Kd6 {[%clk 0:01:09]} 41. Be8 {[%clk 0:01:08]}  Ke5 {[%clk 0:01:09]} 42. Bf7 {[%clk 0:01:09]}  c4 {[%clk 0:01:09]} 43. Bg8 {[%clk 0:01:08]}  h6 {[%clk 0:01:09]} 44. h3 {[%clk 0:01:09]}  Rd3+ {[%clk 0:01:10]} 45. Ke2 {[%clk 0:01:09]}  Kd4 {[%clk 0:01:09]} 0-1

[Event "November 21 Early 2023"]
[Site "https://www.chess.com"]
[Date "2023.11.21"]
[Round "6"]
[White "Pourramezanali, Amirreza"]
[Black "Do Nascimento,Christian Almeida"]
[Result "0-1"]
[Board "70"]
[TimeControl "180+1"]
[WhiteFideId "12511412"]
[BlackFideId "2143801"]
[WhiteElo "2302"]
[BlackElo "2118"]
[WhiteTeam "IRI"]
[BlackTeam "BRA"]
[WhiteClock "0:00:16"]
[BlackClock "0:00:41"]

1. e4 {[%clk 0:03:00]}  c5 {[%clk 0:02:56]} 2. c3 {[%clk 0:03:00]}  d5 {[%clk 0:02:54]} 3. exd5 {[%clk 0:02:59]}  Qxd5 {[%clk 0:02:51]} 4. d4 {[%clk 0:03:00]}  Nf6 {[%clk 0:02:51]} 5. Nf3 {[%clk 0:03:01]}  e6 {[%clk 0:02:51]} 6. Be3 {[%clk 0:03:00]}  cxd4 {[%clk 0:02:51]} 7. cxd4 {[%clk 0:03:01]}  Be7 {[%clk 0:02:49]} 8. Nc3 {[%clk 0:03:02]}  Qd8 {[%clk 0:02:50]} 9. Bd3 {[%clk 0:03:02]}  O-O {[%clk 0:02:50]} 10. O-O {[%clk 0:03:03]}  Nc6 {[%clk 0:02:50]} 11. a3 {[%clk 0:03:04]}  b6 {[%clk 0:02:50]} 12. Qe2 {[%clk 0:03:04]}  Bb7 {[%clk 0:02:51]} 13. Rad1 {[%clk 0:03:04]}  Nd5 {[%clk 0:02:51]} 14. Rfe1 {[%clk 0:03:03]}  Bf6 {[%clk 0:02:51]} 15. Bb1 {[%clk 0:02:59]}  Nce7 {[%clk 0:02:50]} 16. Bc1 {[%clk 0:02:54]}  Nxc3 {[%clk 0:02:45]} 17. bxc3 {[%clk 0:02:53]}  g6 {[%clk 0:02:44]} 18. Ne5 {[%clk 0:02:50]}  Qd5 {[%clk 0:02:31]} 19. f3 {[%clk 0:02:46]}  Bxe5 {[%clk 0:02:29]} 20. dxe5 {[%clk 0:02:44]}  Qc5+ {[%clk 0:02:28]} 21. Kh1 {[%clk 0:02:40]}  Nd5 {[%clk 0:02:21]} 22. Bh6 {[%clk 0:02:17]}  Nxc3 {[%clk 0:02:19]} 23. Bxf8 {[%clk 0:01:43]}  Qxf8 {[%clk 0:02:13]} 24. Qd2 {[%clk 0:01:37]}  Nxd1 {[%clk 0:02:12]} 25. Rxd1 {[%clk 0:01:38]}  Qc5 {[%clk 0:02:06]} 26. Qf4 {[%clk 0:01:34]}  Qxa3 {[%clk 0:01:56]} 27. Rd7 {[%clk 0:01:26]}  Rf8 {[%clk 0:01:24]} 28. Rxb7 {[%clk 0:01:25]}  Qa6 {[%clk 0:01:24]} 29. h4 {[%clk 0:01:04]}  Qxb7 {[%clk 0:01:23]} 30. h5 {[%clk 0:01:04]}  Qe7 {[%clk 0:01:15]} 31. Kh2 {[%clk 0:01:02]}  a5 {[%clk 0:01:08]} 32. Kh3 {[%clk 0:00:59]}  f5 {[%clk 0:01:04]} 33. exf6 {[%clk 0:00:56]}  Qxf6 {[%clk 0:01:00]} 34. Qg4 {[%clk 0:00:38]}  Kg7 {[%clk 0:00:50]} 35. Qe4 {[%clk 0:00:37]}  Qg5 {[%clk 0:00:44]} 36. hxg6 {[%clk 0:00:30]}  Qh6+ {[%clk 0:00:41]} 37. Kg4 {[%clk 0:00:24]}  Qxg6+ {[%clk 0:00:41]} 38. Kh3 {[%clk 0:00:16]}  Qxe4 {[%clk 0:00:41]} 0-1

[Event "November 21 Early 2023"]
[Site "https://www.chess.com"]
[Date "2023.11.21"]
[Round "6"]
[White "Shoker, Samy"]
[Black "Hajiyev, Kanan"]
[Result "1-0"]
[Board "71"]
[TimeControl "180+1"]
[WhiteFideId "627143"]
[BlackFideId "13404148"]
[WhiteElo "2475"]
[BlackElo "2102"]
[WhiteTeam "EGY"]
[BlackTeam "AZE"]
[WhiteClock "0:00:53"]
[BlackClock "0:00:02"]

1. Nf3 {[%clk 0:02:44]}  d5 {[%clk 0:02:59]} 2. g3 {[%clk 0:02:44]}  Nf6 {[%clk 0:02:59]} 3. Bg2 {[%clk 0:02:45]}  c5 {[%clk 0:03:00]} 4. O-O {[%clk 0:02:45]}  Nc6 {[%clk 0:03:00]} 5. d3 {[%clk 0:02:45]}  g6 {[%clk 0:03:00]} 6. Nbd2 {[%clk 0:02:45]}  Bg7 {[%clk 0:03:01]} 7. e4 {[%clk 0:02:45]}  O-O {[%clk 0:03:00]} 8. c3 {[%clk 0:02:44]}  e5 {[%clk 0:03:00]} 9. exd5 {[%clk 0:02:42]}  Nxd5 {[%clk 0:03:01]} 10. Re1 {[%clk 0:02:43]}  Qc7 {[%clk 0:03:00]} 11. a3 {[%clk 0:02:43]}  Rd8 {[%clk 0:02:57]} 12. Rb1 {[%clk 0:02:40]}  h6 {[%clk 0:02:54]} 13. Qe2 {[%clk 0:02:30]}  Bg4 {[%clk 0:02:48]} 14. h3 {[%clk 0:02:29]}  Be6 {[%clk 0:02:48]} 15. c4 {[%clk 0:02:26]}  Nde7 {[%clk 0:02:44]} 16. b4 {[%clk 0:02:25]}  Nf5 {[%clk 0:02:26]} 17. Ne4 {[%clk 0:02:17]}  cxb4 {[%clk 0:02:19]} 18. axb4 {[%clk 0:02:18]}  b6 {[%clk 0:02:08]} 19. b5 {[%clk 0:01:55]}  Ncd4 {[%clk 0:02:07]} 20. Nxd4 {[%clk 0:01:55]}  Nxd4 {[%clk 0:02:05]} 21. Qf1 {[%clk 0:01:37]}  Rac8 {[%clk 0:01:17]} 22. Bb2 {[%clk 0:01:28]}  Nf5 {[%clk 0:01:07]} 23. Red1 {[%clk 0:01:23]}  Kh7 {[%clk 0:01:07]} 24. Nc3 {[%clk 0:01:20]}  Ne7 {[%clk 0:01:07]} 25. Qe2 {[%clk 0:01:17]}  Qd7 {[%clk 0:01:05]} 26. Kh2 {[%clk 0:01:16]}  Nf5 {[%clk 0:01:00]} 27. Ne4 {[%clk 0:01:14]}  Nd4 {[%clk 0:00:53]} 28. Bxd4 {[%clk 0:01:14]}  exd4 {[%clk 0:00:54]} 29. Ra1 {[%clk 0:01:11]}  Re8 {[%clk 0:00:46]} 30. Qa2 {[%clk 0:01:06]}  Rc7 {[%clk 0:00:45]} 31. Qa3 {[%clk 0:01:04]}  Bf8 {[%clk 0:00:42]} 32. Nf6+ {[%clk 0:01:01]}  Kh8 {[%clk 0:00:32]} 33. Nxd7 {[%clk 0:00:54]}  Bxa3 {[%clk 0:00:30]} 34. Nf6 {[%clk 0:00:55]}  Be7 {[%clk 0:00:13]} 35. Nxe8 {[%clk 0:00:54]}  Rc8 {[%clk 0:00:14]} 36. Bc6 {[%clk 0:00:54]}  a5 {[%clk 0:00:02]} 37. bxa6 {[%clk 0:00:53]} 1-0

[Event "November 21 Early 2023"]
[Site "https://www.chess.com"]
[Date "2023.11.21"]
[Round "6"]
[White "Pinto, Daniel"]
[Black "Timerkhanov, Alexander"]
[Result "0-1"]
[Board "73"]
[TimeControl "180+1"]
[WhiteFideId "3303144"]
[BlackFideId "24177938"]
[WhiteElo "2149"]
[BlackElo "2278"]
[WhiteTeam "BOL"]
[BlackTeam "RUS"]
[WhiteClock "0:00:50"]
[BlackClock "0:01:45"]

1. e4 {[%clk 0:03:00]}  c6 {[%clk 0:03:00]} 2. d4 {[%clk 0:02:59]}  d5 {[%clk 0:03:01]} 3. e5 {[%clk 0:03:00]}  Bf5 {[%clk 0:03:01]} 4. h4 {[%clk 0:03:00]}  h5 {[%clk 0:03:00]} 5. Bg5 {[%clk 0:02:48]}  Qb6 {[%clk 0:02:57]} 6. Bd3 {[%clk 0:02:48]}  Bxd3 {[%clk 0:02:50]} 7. Qxd3 {[%clk 0:02:48]}  e6 {[%clk 0:02:51]} 8. Ne2 {[%clk 0:02:46]}  c5 {[%clk 0:02:50]} 9. O-O {[%clk 0:02:43]}  Nc6 {[%clk 0:02:50]} 10. dxc5 {[%clk 0:02:39]}  Bxc5 {[%clk 0:02:50]} 11. c4 {[%clk 0:02:39]}  dxc4 {[%clk 0:02:46]} 12. Qxc4 {[%clk 0:02:39]}  Nh6 {[%clk 0:02:47]} 13. Nd2 {[%clk 0:02:09]}  Nxe5 {[%clk 0:02:41]} 14. Qe4 {[%clk 0:02:03]}  Nhg4 {[%clk 0:02:39]} 15. Kh1 {[%clk 0:01:48]}  Bxf2 {[%clk 0:02:30]} 16. Rac1 {[%clk 0:01:38]}  O-O {[%clk 0:02:26]} 17. Nf3 {[%clk 0:01:30]}  Ng6 {[%clk 0:02:11]} 18. b4 {[%clk 0:01:14]}  Rac8 {[%clk 0:02:04]} 19. Nc3 {[%clk 0:01:03]}  Be3 {[%clk 0:01:57]} 20. Bxe3 {[%clk 0:01:01]}  Nxe3 {[%clk 0:01:57]} 21. Rfe1 {[%clk 0:00:55]}  Ng4 {[%clk 0:01:51]} 22. Qe2 {[%clk 0:00:55]}  Nf4 {[%clk 0:01:47]} 23. Qd2 {[%clk 0:00:50]}  Nd3 {[%clk 0:01:45]} 0-1

[Event "November 21 Early 2023"]
[Site "https://www.chess.com"]
[Date "2023.11.21"]
[Round "6"]
[White "Kazmin_Semyon"]
[Black "Shuvalova, Polina"]
[Result "0-1"]
[Board "75"]
[TimeControl "180+1"]
[BlackFideId "24171760"]
[WhiteElo "2519"]
[BlackElo "2342"]
[BlackTeam "RUS"]
[WhiteClock "0:01:09"]
[BlackClock "0:02:06"]

1. e4 {[%clk 0:03:00]}  c6 {[%clk 0:02:58]} 2. d4 {[%clk 0:03:00]}  d5 {[%clk 0:02:59]} 3. e5 {[%clk 0:03:01]}  Bf5 {[%clk 0:02:59]} 4. Nf3 {[%clk 0:03:01]}  e6 {[%clk 0:02:59]} 5. Be2 {[%clk 0:03:02]}  Ne7 {[%clk 0:02:59]} 6. O-O {[%clk 0:03:03]}  Nd7 {[%clk 0:03:00]} 7. a4 {[%clk 0:03:02]}  Ng6 {[%clk 0:02:59]} 8. a5 {[%clk 0:02:58]}  a6 {[%clk 0:02:56]} 9. c3 {[%clk 0:02:58]}  f6 {[%clk 0:02:56]} 10. exf6 {[%clk 0:02:54]}  Qxf6 {[%clk 0:02:57]} 11. Re1 {[%clk 0:02:47]}  Bd6 {[%clk 0:02:57]} 12. Bg5 {[%clk 0:02:43]}  Qf7 {[%clk 0:02:55]} 13. Nbd2 {[%clk 0:02:42]}  O-O {[%clk 0:02:55]} 14. Nf1 {[%clk 0:02:41]}  h6 {[%clk 0:02:55]} 15. Be3 {[%clk 0:02:41]}  Nf4 {[%clk 0:02:54]} 16. Ng3 {[%clk 0:02:40]}  Nxe2+ {[%clk 0:02:52]} 17. Qxe2 {[%clk 0:02:41]}  Bg4 {[%clk 0:02:52]} 18. h3 {[%clk 0:01:55]}  Bxf3 {[%clk 0:02:51]} 19. gxf3 {[%clk 0:01:56]}  Qxf3 {[%clk 0:02:47]} 20. Qxf3 {[%clk 0:01:56]}  Rxf3 {[%clk 0:02:47]} 21. Kg2 {[%clk 0:01:57]}  Raf8 {[%clk 0:02:44]} 22. Re2 {[%clk 0:01:57]}  R3f6 {[%clk 0:02:39]} 23. Rae1 {[%clk 0:01:54]}  Rg6 {[%clk 0:02:37]} 24. Bd2 {[%clk 0:01:45]}  Rxf2+ {[%clk 0:02:29]} 25. Rxf2 {[%clk 0:01:38]}  Bxg3 {[%clk 0:02:28]} 26. Rxe6 {[%clk 0:01:37]}  Rxe6 {[%clk 0:02:27]} 27. Kxg3 {[%clk 0:01:37]}  Nf6 {[%clk 0:02:28]} 28. Rg2 {[%clk 0:01:31]}  Ne4+ {[%clk 0:02:26]} 29. Kf4 {[%clk 0:01:32]}  g5+ {[%clk 0:02:23]} 30. Kf5 {[%clk 0:01:32]}  Rf6+ {[%clk 0:02:15]} 31. Ke5 {[%clk 0:01:32]}  Kf7 {[%clk 0:02:15]} 32. c4 {[%clk 0:01:10]}  Re6+ {[%clk 0:02:09]} 33. Kf5 {[%clk 0:01:10]}  Nd6+ {[%clk 0:02:09]} 34. Kg4 {[%clk 0:01:09]}  Nxc4 {[%clk 0:02:06]} 0-1

[Event "November 21 Early 2023"]
[Site "https://www.chess.com"]
[Date "2023.11.21"]
[Round "6"]
[White "Kochiev, Ivan"]
[Black "Diaz Perez, Michel Alejandro"]
[Result "0-1"]
[Board "76"]
[TimeControl "180+1"]
[WhiteFideId "2917890"]
[BlackFideId "3517179"]
[WhiteElo "2285"]
[BlackElo "2398"]
[WhiteTeam "BUL"]
[BlackTeam "CUB"]
[WhiteClock "0:00:00"]
[BlackClock "0:00:53"]

1. e4 {[%clk 0:02:48]}  d6 {[%clk 0:02:59]} 2. d4 {[%clk 0:02:48]}  Nd7 {[%clk 0:02:59]} 3. Bd3 {[%clk 0:02:46]}  Ngf6 {[%clk 0:02:59]} 4. f4 {[%clk 0:02:46]}  e5 {[%clk 0:02:59]} 5. c3 {[%clk 0:02:46]}  c6 {[%clk 0:02:59]} 6. Nf3 {[%clk 0:02:46]}  Qc7 {[%clk 0:02:59]} 7. O-O {[%clk 0:02:47]}  Be7 {[%clk 0:02:58]} 8. Be3 {[%clk 0:02:47]}  O-O {[%clk 0:02:53]} 9. Nbd2 {[%clk 0:02:45]}  Re8 {[%clk 0:02:53]} 10. Qe2 {[%clk 0:02:44]}  Bf8 {[%clk 0:02:51]} 11. Rae1 {[%clk 0:02:41]}  b5 {[%clk 0:02:41]} 12. h3 {[%clk 0:02:32]}  a5 {[%clk 0:02:39]} 13. Qf2 {[%clk 0:02:09]}  b4 {[%clk 0:02:34]} 14. Qh4 {[%clk 0:01:49]}  c5 {[%clk 0:02:27]} 15. fxe5 {[%clk 0:01:35]}  dxe5 {[%clk 0:02:26]} 16. d5 {[%clk 0:01:35]}  Ba6 {[%clk 0:02:19]} 17. Bxa6 {[%clk 0:01:31]}  Rxa6 {[%clk 0:02:19]} 18. g4 {[%clk 0:01:20]}  bxc3 {[%clk 0:01:48]} 19. bxc3 {[%clk 0:01:19]}  Rb8 {[%clk 0:01:49]} 20. Nc4 {[%clk 0:01:07]}  Nxe4 {[%clk 0:01:41]} 21. Nfxe5 {[%clk 0:00:39]}  Nxe5 {[%clk 0:01:07]} 22. Nxe5 {[%clk 0:00:15]}  Qxe5 {[%clk 0:01:08]} 23. Bf4 {[%clk 0:00:12]}  Qxc3 {[%clk 0:01:05]} 24. Bxb8 {[%clk 0:00:11]}  Qd4+ {[%clk 0:01:05]} 25. Kh2 {[%clk 0:00:06]}  Qxd5 {[%clk 0:01:06]} 26. Rf5 {[%clk 0:00:03]}  Qd2+ {[%clk 0:01:01]} 27. Kh1 {[%clk 0:00:04]}  Re6 {[%clk 0:00:55]} 28. Bf4 {[%clk 0:00:00]}  Nf2+ {[%clk 0:00:53]} 0-1

[Event "November 21 Early 2023"]
[Site "https://www.chess.com"]
[Date "2023.11.21"]
[Round "6"]
[White "Trost, Edvin"]
[Black "Kuegel, Tobias"]
[Result "1-0"]
[Board "78"]
[TimeControl "180+1"]
[WhiteFideId "1729519"]
[BlackFideId "4636295"]
[WhiteElo "2385"]
[BlackElo "2213"]
[WhiteTeam "SWE"]
[BlackTeam "GER"]
[WhiteClock "0:00:48"]
[BlackClock "0:00:17"]

1. e4 {[%clk 0:02:15]}  e5 {[%clk 0:02:58]} 2. Nf3 {[%clk 0:02:15]}  Nc6 {[%clk 0:02:58]} 3. Bc4 {[%clk 0:02:16]}  Bc5 {[%clk 0:02:58]} 4. c3 {[%clk 0:02:14]}  Nf6 {[%clk 0:02:58]} 5. d3 {[%clk 0:02:15]}  O-O {[%clk 0:02:58]} 6. O-O {[%clk 0:02:14]}  d5 {[%clk 0:02:58]} 7. exd5 {[%clk 0:02:14]}  Nxd5 {[%clk 0:02:59]} 8. Re1 {[%clk 0:02:14]}  Bg4 {[%clk 0:02:59]} 9. h3 {[%clk 0:02:10]}  Bh5 {[%clk 0:02:58]} 10. Nbd2 {[%clk 0:01:56]}  Nb6 {[%clk 0:02:57]} 11. Bb5 {[%clk 0:01:54]}  Bd6 {[%clk 0:02:55]} 12. Qb3 {[%clk 0:01:48]}  Na5 {[%clk 0:02:31]} 13. Qd1 {[%clk 0:01:37]}  Nc6 {[%clk 0:02:16]} 14. a4 {[%clk 0:01:26]}  a6 {[%clk 0:02:09]} 15. Bxc6 {[%clk 0:01:25]}  bxc6 {[%clk 0:02:10]} 16. a5 {[%clk 0:01:26]}  Nd5 {[%clk 0:02:10]} 17. Qa4 {[%clk 0:01:24]}  Nf4 {[%clk 0:01:43]} 18. Qxc6 {[%clk 0:00:51]}  Nxd3 {[%clk 0:01:40]} 19. Re3 {[%clk 0:00:52]}  Nxc1 {[%clk 0:01:09]} 20. Rxc1 {[%clk 0:00:53]}  Qe8 {[%clk 0:01:03]} 21. Qxe8 {[%clk 0:00:51]}  Rfxe8 {[%clk 0:01:04]} 22. Rce1 {[%clk 0:00:51]}  f6 {[%clk 0:01:02]} 23. Nc4 {[%clk 0:00:50]}  Bc5 {[%clk 0:00:59]} 24. Rd3 {[%clk 0:00:44]}  e4 {[%clk 0:00:48]} 25. Rd5 {[%clk 0:00:44]}  exf3 {[%clk 0:00:46]} 26. Rxe8+ {[%clk 0:00:45]}  Rxe8 {[%clk 0:00:40]} 27. Rxc5 {[%clk 0:00:46]}  Re1+ {[%clk 0:00:27]} 28. Kh2 {[%clk 0:00:46]}  fxg2 {[%clk 0:00:26]} 29. Kxg2 {[%clk 0:00:47]}  Bf7 {[%clk 0:00:24]} 30. Ne3 {[%clk 0:00:46]}  Re2 {[%clk 0:00:19]} 31. Rxc7 {[%clk 0:00:46]}  Rxb2 {[%clk 0:00:19]} 32. Rc8+ {[%clk 0:00:47]}  Be8 {[%clk 0:00:19]} 33. Rxe8+ {[%clk 0:00:48]}  Kf7 {[%clk 0:00:17]} 34. Ra8 {[%clk 0:00:48]} 1-0

[Event "November 21 Early 2023"]
[Site "https://www.chess.com"]
[Date "2023.11.21"]
[Round "6"]
[White "Osmak, Yuliia"]
[Black "Degenbaev, Aziz"]
[Result "0-1"]
[Board "82"]
[TimeControl "180+1"]
[WhiteFideId "14101602"]
[BlackFideId "13802640"]
[WhiteElo "2303"]
[BlackElo "2083"]
[WhiteTeam "UKR"]
[BlackTeam "KGZ"]
[WhiteClock "0:00:00"]
[BlackClock "0:00:03"]

1. e4 {[%clk 0:02:53]}  c5 {[%clk 0:03:00]} 2. Nf3 {[%clk 0:02:52]}  d6 {[%clk 0:03:00]} 3. Bb5+ {[%clk 0:02:51]}  Nd7 {[%clk 0:02:59]} 4. a4 {[%clk 0:02:50]}  a6 {[%clk 0:02:51]} 5. Be2 {[%clk 0:02:44]}  Ngf6 {[%clk 0:02:47]} 6. Nc3 {[%clk 0:02:42]}  g6 {[%clk 0:02:48]} 7. a5 {[%clk 0:02:40]}  Bg7 {[%clk 0:02:48]} 8. O-O {[%clk 0:02:40]}  O-O {[%clk 0:02:47]} 9. d3 {[%clk 0:02:41]}  b5 {[%clk 0:02:40]} 10. axb6 {[%clk 0:02:39]}  Nxb6 {[%clk 0:02:40]} 11. Bf4 {[%clk 0:02:19]}  Bb7 {[%clk 0:02:39]} 12. Ra2 {[%clk 0:02:16]}  h6 {[%clk 0:02:32]} 13. h3 {[%clk 0:02:12]}  e5 {[%clk 0:02:32]} 14. Be3 {[%clk 0:02:03]}  Qe7 {[%clk 0:02:32]} 15. Qd2 {[%clk 0:02:02]}  Kh7 {[%clk 0:02:31]} 16. Nh2 {[%clk 0:02:00]}  d5 {[%clk 0:02:31]} 17. exd5 {[%clk 0:01:57]}  Nfxd5 {[%clk 0:02:32]} 18. Nxd5 {[%clk 0:01:51]}  Nxd5 {[%clk 0:02:33]} 19. Bf3 {[%clk 0:01:45]}  f5 {[%clk 0:02:32]} 20. Qc1 {[%clk 0:01:36]}  Rac8 {[%clk 0:02:16]} 21. Ra5 {[%clk 0:01:29]}  Nxe3 {[%clk 0:01:41]} 22. fxe3 {[%clk 0:01:17]}  e4 {[%clk 0:01:41]} 23. dxe4 {[%clk 0:01:16]}  fxe4 {[%clk 0:01:38]} 24. Bg4 {[%clk 0:01:15]}  Rxf1+ {[%clk 0:01:36]} 25. Nxf1 {[%clk 0:01:16]}  Rf8 {[%clk 0:01:33]} 26. c3 {[%clk 0:00:59]}  Be5 {[%clk 0:01:22]} 27. Qe1 {[%clk 0:00:55]}  h5 {[%clk 0:01:18]} 28. Be2 {[%clk 0:00:54]}  Bc7 {[%clk 0:01:18]} 29. Ra1 {[%clk 0:00:49]}  Qd6 {[%clk 0:01:18]} 30. Rd1 {[%clk 0:00:46]}  Qe7 {[%clk 0:01:18]} 31. Bc4 {[%clk 0:00:40]}  Rf5 {[%clk 0:00:57]} 32. Qe2 {[%clk 0:00:34]}  Kh6 {[%clk 0:00:39]} 33. Bxa6 {[%clk 0:00:30]}  Bxa6 {[%clk 0:00:39]} 34. Qxa6 {[%clk 0:00:31]}  Qf7 {[%clk 0:00:37]} 35. Qe2 {[%clk 0:00:27]}  Be5 {[%clk 0:00:35]} 36. Nd2 {[%clk 0:00:25]}  Bb8 {[%clk 0:00:29]} 37. Rf1 {[%clk 0:00:22]}  Qc7 {[%clk 0:00:27]} 38. Rxf5 {[%clk 0:00:21]}  Qh2+ {[%clk 0:00:27]} 39. Kf1 {[%clk 0:00:20]}  Bg3 {[%clk 0:00:25]} 40. Nf3 {[%clk 0:00:11]}  exf3 {[%clk 0:00:21]} 41. Qxf3 {[%clk 0:00:10]}  gxf5 {[%clk 0:00:06]} 42. Qc6+ {[%clk 0:00:10]}  Bd6 {[%clk 0:00:06]} 43. Qd5 {[%clk 0:00:08]}  Qe5 {[%clk 0:00:06]} 44. Qg8 {[%clk 0:00:06]}  Qg7 {[%clk 0:00:05]} 45. Qe6+ {[%clk 0:00:06]}  Qg6 {[%clk 0:00:05]} 46. Qd5 {[%clk 0:00:05]}  Bf8 {[%clk 0:00:04]} 47. Qc4 {[%clk 0:00:04]}  Qf6 {[%clk 0:00:03]} 48. Qd5 {[%clk 0:00:04]}  Qg6 {[%clk 0:00:01]} 49. Qc4 {[%clk 0:00:03]}  Kh7 {[%clk 0:00:02]} 50. Qd5 {[%clk 0:00:03]}  Bh6 {[%clk 0:00:02]} 51. Qxc5 {[%clk 0:00:02]}  Qe6 {[%clk 0:00:03]} 52. Qc7+ {[%clk 0:00:02]}  Kg6 {[%clk 0:00:04]} 53. Qc5 {[%clk 0:00:02]}  Bxe3 {[%clk 0:00:04]} 54. Qb5 {[%clk 0:00:00]}  Qe4 {[%clk 0:00:03]} 0-1